bitfinex/quotes_BTCUSD_20240905
["timestamp","ask_amount","ask_price","bid_price","bid_amount"]
[1725513090727,1.26479382,57215.0,57214.0,0.00013]
[1725513090933,1.26485719,57215.0,57214.0,0.00013]
[1725513092378,1.26485719,57215.0,57214.0,0.10183]
[1725513092379,0.99403698,57215.0,57214.0,0.10183]
[1725513092602,0.74934598,57215.0,57214.0,0.10183]
[1725513092833,0.13761898,57215.0,57214.0,0.10183]
[1725513093047,0.13761898,57215.0,57214.0,0.247177]
[1725513093255,0.13761898,57215.0,57214.0,0.12483]
[1725513093256,0.13750994,57215.0,57214.0,0.12483]
[1725513093670,0.03750994,57215.0,57214.0,0.12483]
[1725513093879,0.11008598,57215.0,57214.0,0.12483]
[1725513094168,0.11108598,57215.0,57214.0,0.12483]
[1725513094385,0.23343098,57215.0,57214.0,0.25163]
[1725513094606,0.72185613,57215.0,57214.0,0.22863]
[1725513094822,0.72285613,57215.0,57214.0,0.22863]
[1725513095662,0.47816513,57215.0,57214.0,0.22863]
[1725513096509,0.47716513,57215.0,57214.0,0.22863]
[1725513097804,0.72185613,57215.0,57214.0,0.22863]
[1725513098224,0.47716513,57215.0,57214.0,0.22863]
[1725513098438,0.11012913,57215.0,57214.0,0.22863]
[1725513098664,0.01012913,57215.0,57214.0,0.25163]
[1725513098901,0.01009215,57215.0,57214.0,0.773977]
[1725513099151,0.01009215,57215.0,57214.0,1.298427]
[1725513099385,0.01009215,57215.0,57214.0,1.555122]
[1725513099615,0.24537651,57239.0,57226.0,0.03506]
[1725513099616,0.244609,57234.0,57226.0,0.03506]
[1725513099849,0.122317,57229.0,57227.0,0.28336]
[1725513100058,0.52650515,57230.0,57227.0,0.28336]
[1725513100059,0.244627,57230.0,57227.0,0.28336]
[1725513100271,0.122312,57231.0,57227.0,0.405679]
[1725513100531,0.01000163,57233.0,57227.0,0.28236]
[1725513100532,0.122308,57233.0,57227.0,0.28236]
[1725513100746,0.244613,57234.0,57230.0,0.0965]
[1725513100747,0.122306,57234.0,57230.0,0.0965]
[1725513100964,0.122306,57234.0,57231.0,0.023]
[1725513101409,0.122307,57233.0,57231.0,0.022]
[1725513102302,0.1,57232.0,57231.0,0.022]
[1725513102501,0.10020583,57232.0,57231.0,0.144311]
[1725513102953,0.00020583,57232.0,57231.0,0.247111]
[1725513103164,0.10020583,57232.0,57231.0,0.247111]
[1725513103379,0.00020583,57232.0,57231.0,0.247111]
[1725513103589,0.00020583,57232.0,57231.0,0.373411]
[1725513103831,0.001,57232.0,57231.0,0.775411]
[1725513104068,0.1,57235.0,57231.0,0.775411]
[1725513104571,0.1,57235.0,57233.0,0.122306]
[1725513104786,0.1,57235.0,57234.0,0.023]
[1725513105225,0.122297,57238.0,57235.0,0.1028]
[1725513105439,0.27009567,57244.0,57236.0,0.1493]
[1725513105650,0.001089,57245.0,57239.0,0.157353]
[1725513105870,0.001089,57245.0,57240.0,0.05806]
[1725513105871,0.122286,57243.0,57240.0,0.05806]
[1725513106079,0.222287,57242.0,57240.0,0.05806]
[1725513106286,0.244568,57244.0,57240.0,0.05806]
[1725513106496,0.122289,57241.0,57240.0,0.05806]
[1725513106704,0.366868,57241.0,57240.0,0.05806]
[1725513106886,0.13231682,57241.0,57240.0,0.05806]
[1725513107127,0.13231682,57241.0,57240.0,0.06206]
[1725513107549,0.40430257,57241.0,57240.0,0.027]
[1725513107762,0.37689582,57241.0,57240.0,0.023]
[1725513107972,0.37689582,57241.0,57238.0,0.023]
[1725513107973,0.23231682,57241.0,57238.0,0.023]
[1725513108635,0.22974111,57241.0,57238.0,0.023]
[1725513108872,0.122292,57240.0,57238.0,0.023]
[1725513109357,0.00591624,57239.0,57238.0,0.023]
[1725513110052,0.00591624,57239.0,57238.0,0.028]
[1725513110470,0.00591624,57239.0,57238.0,0.023]
[1725513110694,0.00691624,57239.0,57238.0,0.031]
[1725513111136,0.12921024,57239.0,57238.0,0.031]
[1725513112663,0.12821024,57239.0,57238.0,0.023]
[1725513113144,0.12921024,57239.0,57238.0,0.031]
[1725513115284,0.37379824,57239.0,57238.0,0.031]
[1725513116785,0.12921024,57239.0,57238.0,0.031]
[1725513116997,0.37379824,57239.0,57238.0,0.031]
[1725513117837,0.61838624,57239.0,57238.0,0.031]
[1725513118092,0.61838624,57239.0,57238.0,0.008]
[1725513118329,0.86297424,57239.0,57238.0,0.008]
[1725513118538,1.10835075,57239.0,57238.0,0.008]
[1725513118951,1.20835075,57239.0,57238.0,0.008]
[1725513119162,0.96297424,57239.0,57238.0,0.008]
[1725513119890,0.99038366,57239.0,57238.0,0.008]
[1725513120613,0.74579566,57239.0,57238.0,0.1076]
[1725513121556,0.25661966,57239.0,57238.0,0.1306]
[1725513122060,0.47379824,57239.0,57238.0,0.1306]
[1725513122288,0.5012064,57239.0,57238.0,0.1306]
[1725513122515,0.1343244,57239.0,57238.0,0.1306]
[1725513122744,0.0343244,57239.0,57238.0,0.1306]
[1725513123216,0.1566184,57239.0,57238.0,0.1306]
[1725513123469,0.2566184,57239.0,57238.0,0.1306]
[1725513123703,0.22921024,57239.0,57238.0,0.1306]
[1725513126062,0.25661785,57239.0,57238.0,0.1306]
[1725513126298,0.22921024,57239.0,57238.0,0.1306]
[1725513126730,0.22921024,57239.0,57238.0,0.132232]
[1725513127173,0.23002624,57239.0,57238.0,0.132232]
[1725513127842,0.25743384,57239.0,57238.0,0.132232]
[1725513128305,1.23657435,57239.0,57238.0,0.009632]
[1725513130039,0.99119784,57239.0,57238.0,0.009632]
[1725513130884,1.01651348,57239.0,57238.0,0.009632]
[1725513134551,0.85579252,57239.0,57238.0,0.009632]
[1725513135237,0.97808652,57239.0,57238.0,0.009632]
[1725513136758,1.00549723,57239.0,57238.0,0.009632]
[1725513137842,1.10989723,57239.0,57238.0,0.009632]
[1725513138057,1.24039723,57239.0,57238.0,0.009632]
[1725513138695,1.24039723,57239.0,57238.0,0.001632]
[1725513138943,1.24039723,57239.0,57238.0,0.007632]
[1725513139145,1.24139723,57239.0,57238.0,0.007632]
[1725513140022,1.24221323,57239.0,57238.0,0.007632]
[1725513142188,1.00731323,57239.0,57238.0,0.007632]
[1725513144562,1.08541587,57239.0,57238.0,0.007632]
[1725513144792,1.00731323,57239.0,57238.0,0.007632]
[1725513145052,0.73531452,57239.0,57238.0,0.007632]
[1725513145283,0.22944245,57239.0,57238.0,0.128032]
[1725513145547,0.22944245,57239.0,57238.0,0.226432]
[1725513145548,0.10714845,57239.0,57238.0,0.226432]
[1725513146017,0.10714845,57239.0,57238.0,0.249432]
[1725513147210,0.00714845,57239.0,57238.0,0.249432]
[1725513153333,0.00714845,57239.0,57238.0,0.494024]
[1725513153573,0.00714845,57239.0,57238.0,1.15605769]
[1725513153807,0.001816,57239.0,57238.0,1.152564]
[1725513154056,0.001816,57239.0,57238.0,1.63128453]
[1725513154286,0.001816,57239.0,57238.0,1.65121033]
[1725513154514,0.000816,57241.0,57240.0,1.14309651]
[1725513154739,0.000816,57241.0,57240.0,1.41068051]
[1725513154983,0.000816,57241.0,57240.0,1.40968051]
[1725513155220,0.52650515,57260.0,57240.0,1.40968051]
[1725513155221,0.30582917,57260.0,57256.0,0.122257]
[1725513155445,0.42807917,57260.0,57257.0,0.2422]
[1725513155681,0.12225,57260.0,57257.0,0.2412]
[1725513156369,0.001,57262.0,57257.0,0.2412]
[1725513156370,0.122245,57262.0,57257.0,0.2412]
[1725513156602,0.222247,57261.0,57257.0,0.2412]
[1725513157082,0.24964579,57261.0,57257.0,0.2412]
[1725513158008,0.12739879,57261.0,57257.0,0.2412]
[1725513158283,0.12739879,57261.0,57258.0,0.122252]
[1725513158523,0.02739879,57261.0,57260.0,0.366747]
[1725513158755,0.02739879,57261.0,57260.0,0.652007]
[1725513158997,0.02739879,57261.0,57260.0,0.28526]
[1725513159483,0.14964579,57261.0,57260.0,0.28526]
[1725513159940,0.02839879,57261.0,57260.0,0.29926]
[1725513160443,0.02839879,57261.0,57260.0,0.28526]
[1725513160444,0.02739879,57261.0,57260.0,0.28526]
[1725513160685,0.02739879,57261.0,57260.0,0.29926]
[1725513160686,0.02839879,57261.0,57260.0,0.29926]
[1725513161590,0.02839879,57261.0,57260.0,0.421509]
[1725513162071,0.02739879,57261.0,57260.0,0.407509]
[1725513162297,0.001,57261.0,57260.0,0.419509]
[1725513162517,0.001,57261.0,57260.0,0.29726]
[1725513162742,0.244462,57269.0,57260.0,0.77862681]
[1725513162979,0.222232,57268.0,57265.0,0.0977]
[1725513163226,0.222232,57268.0,57265.0,0.13176]
[1725513163461,0.222232,57268.0,57266.0,0.05806]
[1725513163910,0.122234,57267.0,57266.0,0.05806]
[1725513164156,0.466702,57267.0,57266.0,0.05806]
[1725513164412,0.466702,57267.0,57261.0,0.122246]
[1725513164413,0.344468,57267.0,57261.0,0.03506]
[1725513164714,0.12224,57264.0,57263.0,0.03506]
[1725513164940,0.12224,57264.0,57263.0,0.05806]
[1725513165605,0.14963619,57264.0,57263.0,0.05806]
[1725513166299,0.14963619,57264.0,57263.0,0.15126]
[1725513166528,0.14963619,57264.0,57263.0,0.16226]
[1725513166770,0.15063619,57264.0,57263.0,0.16226]
[1725513166997,0.39511719,57264.0,57263.0,0.16226]
[1725513167225,0.39411719,57264.0,57263.0,0.15126]
[1725513167454,0.02739619,57264.0,57263.0,0.15126]
[1725513167679,0.14963619,57264.0,57263.0,0.15126]
[1725513168156,0.02739619,57264.0,57263.0,0.15126]
[1725513168590,0.02839619,57264.0,57263.0,0.16226]
[1725513169242,0.02839619,57264.0,57263.0,0.65123]
[1725513169482,0.02839619,57264.0,57263.0,0.654587]
[1725513169702,0.24537651,57278.0,57263.0,0.654587]
[1725513169703,0.24444,57274.0,57265.0,0.03506]
[1725513169950,0.24444,57274.0,57264.0,0.0962]
[1725513169951,0.122226,57271.0,57267.0,0.157293]
[1725513170163,0.122226,57271.0,57269.0,0.03506]
[1725513170394,0.244444,57273.0,57269.0,0.03506]
[1725513170606,0.122224,57272.0,57270.0,0.45806]
[1725513170819,0.244435,57275.0,57270.0,0.45806]
[1725513171094,0.244432,57276.0,57270.0,0.45806]
[1725513171307,0.122225,57271.0,57270.0,0.45806]
[1725513171754,0.122225,57271.0,57270.0,0.05806]
[1725513172435,0.122225,57271.0,57270.0,0.06106]
[1725513172877,0.122225,57271.0,57270.0,0.05806]
[1725513173097,0.122232,57268.0,57267.0,0.03506]
[1725513173309,0.122232,57268.0,57267.0,0.05806]
[1725513173530,0.366696,57268.0,57267.0,0.05806]
[1725513174195,0.122232,57268.0,57267.0,0.05806]
[1725513175073,0.122232,57268.0,57267.0,0.06806]
[1725513175299,0.366696,57268.0,57267.0,0.06806]
[1725513175722,0.366696,57268.0,57267.0,0.05806]
[1725513175977,0.366696,57268.0,57267.0,0.07106]
[1725513176425,0.366696,57268.0,57267.0,0.05806]
[1725513176645,0.122232,57268.0,57267.0,0.05806]
[1725513176863,0.122232,57268.0,57267.0,0.06906]
[1725513178204,0.123232,57268.0,57267.0,0.07206]
[1725513179966,0.001,57268.0,57267.0,0.658462]
[1725513180669,0.001,57268.0,57267.0,1.058462]
[1725513187456,0.001,57268.0,57267.0,1.060092]
[1725513187698,0.001815,57268.0,57267.0,1.060092]
[1725513187923,0.001815,57268.0,57267.0,0.56799]
[1725513188145,0.124047,57268.0,57267.0,0.56799]
[1725513188363,0.001815,57268.0,57267.0,0.56799]
[1725513189679,0.001815,57268.0,57267.0,0.16799]
[1725513191144,0.124047,57268.0,57267.0,0.16799]
[1725513191367,0.001815,57268.0,57267.0,0.16799]
[1725513191779,0.001815,57268.0,57267.0,0.56799]
[1725513192261,0.368511,57268.0,57267.0,0.47369]
[1725513192472,1.077439,57268.0,57267.0,0.41563]
[1725513192685,1.077439,57268.0,57267.0,0.01563]
[1725513194016,0.368511,57268.0,57267.0,0.15028]
[1725513194217,0.001815,57268.0,57267.0,0.17328]
[1725513194426,0.124047,57268.0,57267.0,0.17328]
[1725513196453,0.368511,57268.0,57267.0,0.17328]
[1725513198467,0.956539,57268.0,57267.0,0.01563]
[1725513198694,0.857439,57268.0,57267.0,0.01563]
[1725513201866,0.88220442,57268.0,57267.0,0.01563]
[1725513202357,0.857439,57268.0,57267.0,0.01563]
[1725513204421,0.975839,57268.0,57267.0,0.01563]
[1725513204656,1.171139,57268.0,57267.0,0.01563]
[1725513205539,1.171139,57268.0,57267.0,0.00463]
[1725513205774,1.171139,57268.0,57267.0,0.00563]
[1725513205775,1.170139,57268.0,57267.0,0.00563]
[1725513205985,1.171139,57268.0,57267.0,0.00863]
[1725513210700,1.048092,57268.0,57267.0,0.00863]
[1725513210916,1.170324,57268.0,57267.0,0.00863]
[1725513212037,1.171139,57268.0,57267.0,0.00863]
[1725513213736,0.957439,57268.0,57267.0,0.00863]
[1725513213944,0.712975,57268.0,57267.0,0.00863]
[1725513218825,0.468511,57268.0,57267.0,0.00863]
[1725513219976,0.712975,57268.0,57267.0,0.00863]
[1725513220444,0.468511,57268.0,57267.0,0.00863]
[1725513220892,0.124047,57268.0,57267.0,0.00863]
[1725513221144,0.001815,57268.0,57267.0,0.16468]
[1725513221365,0.001815,57268.0,57267.0,0.28868]
[1725513222250,0.001815,57268.0,57267.0,0.28468]
[1725513222456,0.001815,57268.0,57267.0,0.29668]
[1725513222663,0.001815,57268.0,57267.0,0.418914]
[1725513222899,0.000815,57268.0,57267.0,0.29368]
[1725513223311,0.001815,57268.0,57267.0,0.29668]
[1725513223730,0.000815,57268.0,57267.0,0.69368]
[1725513223939,0.000815,57268.0,57267.0,0.69668]
[1725513224157,0.001815,57268.0,57267.0,0.69668]
[1725513224371,0.001815,57268.0,57267.0,0.68468]
[1725513224798,0.001815,57268.0,57267.0,0.69668]
[1725513225650,0.001815,57268.0,57267.0,0.29668]
[1725513226938,0.02920879,57268.0,57267.0,0.29668]
[1725513228684,0.02920879,57268.0,57267.0,0.69668]
[1725513229334,0.001815,57268.0,57267.0,0.69668]
[1725513230875,0.001815,57268.0,57267.0,0.818914]
[1725513233909,0.02572961,57274.0,57267.0,0.818914]
[1725513234120,0.122226,57271.0,57269.0,0.03505]
[1725513234345,0.122226,57271.0,57270.0,0.05805]
[1725513234551,0.122226,57271.0,57270.0,0.03505]
[1725513234762,0.122226,57271.0,57270.0,0.05805]
[1725513235222,0.02572961,57274.0,57270.0,0.05805]
[1725513235575,0.02672961,57274.0,57270.0,0.05805]
[1725513235791,0.122222,57273.0,57270.0,0.05805]
[1725513236002,0.1,57272.0,57270.0,0.05805]
[1725513236207,0.001,57271.0,57270.0,0.06605]
[1725513236429,0.1,57272.0,57270.0,0.05805]
[1725513236845,0.12739299,57272.0,57270.0,0.05805]
[1725513237047,0.12739299,57272.0,57271.0,0.023]
[1725513237278,0.02739299,57272.0,57271.0,0.023]
[1725513238247,0.02739299,57272.0,57271.0,0.34141198]
[1725513238499,0.02739299,57272.0,57271.0,0.243325]
[1725513238714,0.02739299,57272.0,57271.0,0.251325]
[1725513239137,0.02739299,57272.0,57271.0,0.495776]
[1725513239363,0.02839299,57272.0,57271.0,0.495776]
[1725513239589,0.02739299,57272.0,57271.0,0.495776]
[1725513240050,0.02839299,57272.0,57271.0,0.504776]
[1725513240912,0.02839299,57272.0,57271.0,0.260325]
[1725513242274,0.02839299,57272.0,57271.0,0.76301298]
[1725513242524,0.02839299,57272.0,57271.0,0.664926]
[1725513243238,0.02839299,57272.0,57271.0,0.420475]
[1725513243458,0.02839299,57272.0,57271.0,0.403475]
[1725513243459,0.02739299,57272.0,57271.0,0.403475]
[1725513243941,0.02839299,57272.0,57271.0,0.76901298]
[1725513244180,0.02739299,57272.0,57271.0,1.00446398]
[1725513244413,0.02739299,57272.0,57271.0,0.99046398]
[1725513244634,0.02739299,57272.0,57271.0,1.50936598]
[1725513244844,0.02739299,57272.0,57271.0,1.67891498]
[1725513245062,0.000815,57274.0,57273.0,0.9006]
[1725513245305,0.000815,57274.0,57273.0,1.24568698]
[1725513246512,0.00082,57291.0,57290.0,0.122185]
[1725513246747,0.00082,57291.0,57290.0,0.648605]
[1725513247215,0.02820127,57291.0,57290.0,0.648605]
[1725513247679,0.02820127,57291.0,57290.0,1.048605]
[1725513248147,0.02820127,57291.0,57290.0,1.29355713]
[1725513248654,0.02820127,57291.0,57290.0,1.53792713]
[1725513249794,0.02820127,57291.0,57290.0,1.55192713]
[1725513250241,0.02820127,57291.0,57290.0,1.56592713]
[1725513250714,0.00082,57291.0,57290.0,1.81029713]
[1725513251188,0.00082,57291.0,57290.0,1.82029713]
[1725513251411,0.00082,57291.0,57290.0,1.82129713]
[1725513251887,0.00082,57291.0,57290.0,2.08566713]
[1725513252125,0.00082,57291.0,57290.0,1.84129713]
[1725513252339,0.00082,57291.0,57290.0,1.82729713]
[1725513252590,0.00082,57291.0,57290.0,1.81329713]
[1725513252835,0.00082,57291.0,57290.0,1.84129713]
[1725513253091,0.00082,57291.0,57290.0,1.82729713]
[1725513253642,0.00082,57291.0,57290.0,1.84129713]
[1725513260657,0.00082,57291.0,57290.0,1.84229713]
[1725513261543,0.00082,57291.0,57290.0,1.84129713]
[1725513262917,0.00082,57297.0,57294.0,1.16623713]
[1725513263132,0.00082,57297.0,57294.0,1.42193713]
[1725513263363,0.00082,57297.0,57294.0,1.76629013]
[1725513264448,0.00082,57297.0,57294.0,1.76729013]
[1725513265859,0.00082,57297.0,57294.0,2.18129013]
[1725513266111,0.00082,57297.0,57294.0,2.19529013]
[1725513266585,0.00082,57297.0,57294.0,2.18129013]
[1725513266801,0.00082,57297.0,57294.0,2.18029013]
[1725513267014,0.00082,57297.0,57294.0,2.19429013]
[1725513267246,0.00082,57297.0,57294.0,3.45169013]
[1725513267696,0.00082,57297.0,57294.0,3.46569013]
[1725513268576,0.122135,57314.0,57311.0,0.03505]
[1725513268842,0.122135,57314.0,57310.0,0.36709413]
[1725513268843,0.122135,57314.0,57313.0,0.03505]
[1725513269061,0.14950692,57314.0,57313.0,0.03505]
[1725513269271,0.14950692,57314.0,57313.0,0.05805]
[1725513269505,0.02737192,57314.0,57313.0,0.05805]
[1725513269726,0.73794192,57314.0,57313.0,0.05805]
[1725513269944,0.83317,57314.0,57313.0,0.05805]
[1725513270150,0.83317,57314.0,57313.0,0.07205]
[1725513270776,0.83317,57314.0,57313.0,0.08605]
[1725513271214,0.833986,57314.0,57313.0,0.08605]
[1725513271643,0.589718,57314.0,57313.0,0.08605]
[1725513272488,0.61709034,57314.0,57313.0,0.08605]
[1725513277585,0.02818834,57314.0,57313.0,0.69741013]
[1725513278039,0.02818834,57314.0,57313.0,0.94168213]
[1725513278243,0.02818834,57314.0,57313.0,0.69741013]
[1725513278670,0.02818834,57314.0,57313.0,1.34168213]
[1725513279591,0.02818834,57314.0,57313.0,1.09673]
[1725513282303,0.02818834,57314.0,57313.0,1.08273]
[1725513282539,0.02818834,57314.0,57313.0,1.34168213]
[1725513282746,0.02818834,57314.0,57313.0,1.34331213]
[1725513282947,0.000816,57314.0,57313.0,1.34331213]
[1725513283082,0.000816,57314.0,57313.0,1.31531213]
[1725513283305,0.000816,57314.0,57313.0,1.32931213]
[1725513283517,0.000816,57314.0,57313.0,1.34331213]
[1725513283723,0.000816,57314.0,57313.0,1.32931213]
[1725513283996,0.000816,57314.0,57313.0,1.08436]
[1725513284198,0.000816,57314.0,57313.0,1.19626593]
[1725513286686,0.000816,57314.0,57313.0,1.44053793]
[1725513286897,0.000816,57314.0,57313.0,1.93330993]
[1725513287114,0.000816,57314.0,57313.0,1.93430993]
[1725513287582,0.000815,57317.0,57316.0,1.01886193]
[1725513287834,0.000815,57317.0,57316.0,1.27576193]
[1725513288691,0.000815,57317.0,57316.0,1.67576193]
[1725513289771,0.000815,57317.0,57316.0,1.70376193]
[1725513289977,0.000815,57317.0,57316.0,2.09476211]
[1725513290183,0.000815,57317.0,57316.0,2.08076211]
[1725513290823,0.000815,57317.0,57316.0,2.13297377]
[1725513291035,0.000815,57317.0,57316.0,2.14697377]
[1725513291266,0.000815,57317.0,57316.0,2.14797377]
[1725513291480,0.000815,57317.0,57316.0,2.09576211]
[1725513291729,0.000815,57317.0,57316.0,2.17407961]
[1725513291942,0.000815,57317.0,57316.0,2.35314284]
[1725513292159,0.000815,57317.0,57316.0,2.44002111]
[1725513292396,0.000815,57317.0,57316.0,2.45314284]
[1725513292622,0.00082,57319.0,57318.0,1.62633]
[1725513292829,0.00082,57319.0,57318.0,1.85680182]
[1725513293696,0.00082,57319.0,57318.0,2.25676673]
[1725513294549,0.00082,57319.0,57318.0,1.905079]
[1725513294760,0.00082,57319.0,57318.0,1.919079]
[1725513295419,0.00082,57319.0,57318.0,2.02340211]
[1725513295839,0.00082,57319.0,57318.0,2.03640211]
[1725513296054,0.00082,57319.0,57318.0,2.25495309]
[1725513296464,0.00082,57319.0,57318.0,2.17672611]
[1725513297097,0.00082,57319.0,57318.0,3.44712611]
[1725513297535,0.00082,57319.0,57318.0,3.49927082]
[1725513298015,0.00082,57319.0,57318.0,3.20187511]
[1725513298259,0.00082,57319.0,57318.0,2.364077]
[1725513298486,0.00082,57319.0,57318.0,2.37447311]
[1725513298728,0.00082,57319.0,57318.0,2.61872411]
[1725513299220,0.00082,57319.0,57318.0,2.60472411]
[1725513300023,0.00082,57319.0,57318.0,2.64172411]
[1725513300269,0.00082,57319.0,57318.0,2.88597511]
[1725513300532,0.00082,57319.0,57318.0,2.62172411]
[1725513301400,0.00082,57319.0,57318.0,2.61172411]
[1725513302270,0.00082,57319.0,57318.0,2.36747311]
[1725513302485,0.00082,57319.0,57318.0,0.46305]
[1725513302486,0.10592,57319.0,57318.0,0.46305]
[1725513302726,0.10592,57319.0,57318.0,0.06305]
[1725513302727,0.60169011,57319.0,57318.0,0.06305]
[1725513302988,0.60169011,57319.0,57318.0,0.028]
[1725513302989,1.09785719,57319.0,57318.0,0.028]
[1725513303239,1.34210419,57319.0,57318.0,0.028]
[1725513303701,1.34210419,57319.0,57318.0,0.014]
[1725513303702,1.36780349,57319.0,57318.0,0.014]
[1725513303920,1.21362632,57319.0,57318.0,0.014]
[1725513304139,1.21362632,57319.0,57318.0,0.025]
[1725513304358,1.18792702,57319.0,57318.0,0.011]
[1725513304592,1.18792702,57319.0,57314.0,0.00163]
[1725513304593,0.61066,57315.0,57314.0,0.00163]
[1725513305459,0.63803156,57315.0,57314.0,0.00163]
[1725513305880,0.63803156,57315.0,57314.0,0.02463]
[1725513306320,0.63803156,57315.0,57314.0,0.03163]
[1725513306795,0.81623156,57315.0,57314.0,0.03863]
[1725513307773,0.32770356,57315.0,57314.0,0.07368]
[1725513308605,0.32770356,57315.0,57314.0,0.06668]
[1725513309021,0.32770356,57315.0,57314.0,0.07768]
[1725513309227,0.57196756,57315.0,57314.0,0.07768]
[1725513309660,0.57196756,57315.0,57314.0,0.07068]
[1725513309790,0.57196756,57315.0,57314.0,0.08068]
[1725513310707,0.32770356,57315.0,57314.0,0.08068]
[1725513311361,0.02737156,57315.0,57314.0,0.447082]
[1725513311561,0.02737156,57315.0,57314.0,0.202814]
[1725513314261,0.176839,57319.0,57314.0,0.202814]
[1725513315111,0.176839,57319.0,57314.0,0.191814]
[1725513315318,0.244239,57321.0,57314.0,0.191814]
[1725513315319,0.22843137,57321.0,57314.0,0.191814]
[1725513315598,0.22843137,57321.0,57314.0,0.197814]
[1725513315798,0.22843137,57321.0,57314.0,0.187814]
[1725513315995,0.122124,57319.0,57314.0,0.187814]
[1725513316196,0.122124,57319.0,57314.0,0.193814]
[1725513316457,0.122126,57318.0,57314.0,0.187814]
[1725513316857,0.122123,57319.0,57314.0,0.190814]
[1725513317083,0.0273703,57318.0,57314.0,0.184814]
[1725513317280,0.0273703,57318.0,57314.0,0.181814]
[1725513317425,0.0273703,57318.0,57314.0,0.191814]
[1725513317631,0.0273703,57318.0,57315.0,0.157181]
[1725513317833,0.0273703,57318.0,57316.0,0.023]
[1725513318917,0.0273703,57318.0,57316.0,0.03]
[1725513319961,0.0273703,57318.0,57316.0,0.03863]
[1725513321210,0.0273703,57318.0,57316.0,0.160759]
[1725513322303,0.0273703,57318.0,57317.0,0.122127]
[1725513322478,0.0273703,57318.0,57317.0,0.145127]
[1725513323436,0.0273703,57318.0,57317.0,0.517682]
[1725513323552,0.0273703,57318.0,57317.0,0.559732]
[1725513323759,0.000815,57319.0,57318.0,0.401426]
[1725513323959,0.000815,57319.0,57318.0,0.424426]
[1725513324999,0.000815,57319.0,57318.0,0.435426]
[1725513325610,0.000815,57319.0,57318.0,1.079677]
[1725513325810,0.000815,57319.0,57318.0,1.420128]
[1725513326621,0.000815,57319.0,57318.0,1.419128]
[1725513327091,0.02818146,57319.0,57318.0,1.433128]
[1725513327525,0.02818146,57319.0,57318.0,1.423128]
[1725513327959,0.02818146,57319.0,57318.0,1.437128]
[1725513330509,0.02818146,57319.0,57318.0,0.948626]
[1725513330721,0.000815,57319.0,57318.0,0.08605]
[1725513331152,0.122938,57319.0,57318.0,0.08605]
[1725513333081,0.98057911,57319.0,57318.0,0.028]
[1725513334042,0.98057911,57319.0,57318.0,0.014]
[1725513334267,0.610637,57317.0,57316.0,0.00163]
[1725513336132,0.610637,57317.0,57316.0,0.01563]
[1725513336585,0.610637,57317.0,57316.0,0.02963]
[1725513338880,0.610637,57317.0,57316.0,0.06468]
[1725513339582,0.366382,57317.0,57316.0,0.06468]
[1725513339836,0.122127,57317.0,57316.0,0.31028]
[1725513340850,0.122125,57318.0,57316.0,0.31028]
[1725513341078,0.122125,57318.0,57317.0,0.05805]
[1725513341781,0.000815,57319.0,57317.0,0.05805]
[1725513341782,0.122938,57319.0,57317.0,0.05805]
[1725513342020,0.000815,57319.0,57318.0,0.742477]
[1725513342256,0.000815,57319.0,57318.0,0.888377]
[1725513343529,0.000815,57319.0,57318.0,0.916377]
[1725513343794,0.000815,57319.0,57318.0,1.316377]
[1725513345195,0.000815,57319.0,57318.0,1.560628]
[1725513346111,0.07812519,57343.0,57325.0,0.12805]
[1725513346319,0.122101,57330.0,57326.0,0.023]
[1725513346712,0.122101,57330.0,57326.0,0.145108]
[1725513347142,0.122102,57329.0,57326.0,0.145108]
[1725513347356,0.1221,57330.0,57326.0,0.145108]
[1725513347801,0.02736539,57330.0,57326.0,0.023]
[1725513348003,0.02736539,57330.0,57327.0,0.1201]
[1725513348205,0.02736539,57330.0,57328.0,0.267208]
[1725513348410,0.02736539,57330.0,57329.0,0.122102]
[1725513348834,0.02736539,57330.0,57329.0,0.73301]
[1725513349043,0.03503293,57330.0,57329.0,0.76806]
[1725513349259,0.02736539,57330.0,57329.0,0.76806]
[1725513349482,0.02736539,57330.0,57329.0,0.88966]
[1725513349689,0.02736539,57330.0,57329.0,1.28966]
[1725513349891,0.02736539,57330.0,57329.0,1.533864]
[1725513350102,0.02736539,57330.0,57329.0,1.556864]
[1725513350513,0.02736539,57330.0,57329.0,1.569864]
[1725513350723,0.12062,57349.0,57343.0,0.122071]
[1725513350947,0.122064,57347.0,57344.0,0.023]
[1725513351160,0.00082,57349.0,57348.0,0.703407]
[1725513351400,0.00082,57349.0,57348.0,0.726407]
[1725513351604,0.00082,57349.0,57348.0,0.761457]
[1725513353092,0.00082,57349.0,57348.0,0.770457]
[1725513353296,0.00082,57349.0,57348.0,0.761457]
[1725513353509,0.00082,57349.0,57348.0,0.775457]
[1725513353745,0.00082,57349.0,57348.0,0.789457]
[1725513353970,0.00082,57349.0,57348.0,0.775457]
[1725513354388,0.00082,57349.0,57348.0,0.789457]
[1725513355627,0.00082,57349.0,57348.0,0.761457]
[1725513356024,0.00082,57349.0,57348.0,0.775457]
[1725513356251,0.00082,57349.0,57348.0,0.789457]
[1725513356657,0.00082,57349.0,57348.0,0.775457]
[1725513358126,0.00082,57349.0,57348.0,0.531334]
[1725513358365,0.00082,57349.0,57348.0,0.775457]
[1725513359092,0.00082,57349.0,57348.0,0.789457]
[1725513359297,0.00082,57349.0,57348.0,0.775457]
[1725513359496,0.00082,57349.0,57348.0,0.761457]
[1725513359801,0.00082,57349.0,57348.0,1.189457]
[1725513361699,0.00082,57349.0,57348.0,0.945334]
[1725513362439,0.00082,57349.0,57348.0,0.917334]
[1725513362847,0.00082,57349.0,57348.0,0.931334]
[1725513363520,0.00082,57349.0,57348.0,0.959334]
[1725513363963,0.00082,57349.0,57348.0,0.945334]
[1725513364430,0.00082,57349.0,57348.0,0.959334]